[Event "Titled Tuesday Blitz April 25 Early 2023"]
[White "Erzhanov, Arman"]
[Black "Harris, Ian"]
[WhiteFideId "4138821"]
[BlackFideId "2020092"]
[WhiteElo "2138"]
[BlackElo "2295"]
[Result "1/2-1/2"]
[Round "03"]
[TimeControl "180+2"]
[Date "2023.04.25"]
[WhiteClock "0:00:19"]
[BlackClock "0:00:11"]

1. e4 {[%clk 0:02:42]}  e5 {[%clk 0:02:57]} 2. Nf3 {[%clk 0:02:42]}  Nc6 {[%clk 0:02:57]} 3. Bb5 {[%clk 0:02:40]}  Bc5 {[%clk 0:02:56]} 4. c3 {[%clk 0:02:39]}  f5 {[%clk 0:02:55]} 5. exf5 {[%clk 0:02:23]}  e4 {[%clk 0:02:48]} 6. d4 {[%clk 0:01:43]}  exf3 {[%clk 0:02:46]} 7. dxc5 {[%clk 0:01:43]}  Qe7+ {[%clk 0:02:37]} 8. Be3 {[%clk 0:01:35]}  fxg2 {[%clk 0:02:37]} 9. Rg1 {[%clk 0:01:34]}  Nf6 {[%clk 0:02:34]} 10. Bc4 {[%clk 0:01:22]}  Ne5 {[%clk 0:02:27]} 11. Bb3 {[%clk 0:01:17]}  d5 {[%clk 0:02:23]} 12. cxd6 {[%clk 0:01:17]}  cxd6 {[%clk 0:02:22]} 13. Bc2 {[%clk 0:00:55]}  Bd7 {[%clk 0:01:44]} 14. Rxg2 {[%clk 0:00:54]}  Bc6 {[%clk 0:01:43]} 15. Rg3 {[%clk 0:00:55]}  h5 {[%clk 0:01:39]} 16. Nd2 {[%clk 0:00:43]}  h4 {[%clk 0:01:39]} 17. Rg1 {[%clk 0:00:40]}  O-O-O {[%clk 0:01:23]} 18. Qe2 {[%clk 0:00:40]}  Rhe8 {[%clk 0:01:21]} 19. O-O-O {[%clk 0:00:40]}  Kb8 {[%clk 0:01:18]} 20. Kb1 {[%clk 0:00:39]}  d5 {[%clk 0:01:07]} 21. Bf4 {[%clk 0:00:33]}  Ka8 {[%clk 0:01:06]} 22. Nb3 {[%clk 0:00:25]}  Neg4 {[%clk 0:00:50]} 23. Qd2 {[%clk 0:00:19]}  Qe2 {[%clk 0:00:45]} 24. Nd4 {[%clk 0:00:19]}  Qxd2 {[%clk 0:00:45]} 25. Rxd2 {[%clk 0:00:19]}  Re7 {[%clk 0:00:39]} 26. h3 {[%clk 0:00:19]}  Ne5 {[%clk 0:00:38]} 27. Ne6 {[%clk 0:00:18]}  Nc4 {[%clk 0:00:35]} 28. Rdd1 {[%clk 0:00:17]}  Rde8 {[%clk 0:00:35]} 29. b3 {[%clk 0:00:16]}  Na3+ {[%clk 0:00:35]} 30. Kb2 {[%clk 0:00:15]}  Nxc2 {[%clk 0:00:35]} 31. Kxc2 {[%clk 0:00:16]}  Rc8 {[%clk 0:00:32]} 32. Rg6 {[%clk 0:00:15]}  a6 {[%clk 0:00:31]} 33. Kb2 {[%clk 0:00:15]}  b5 {[%clk 0:00:31]} 34. a3 {[%clk 0:00:15]}  Kb7 {[%clk 0:00:32]} 35. Rdg1 {[%clk 0:00:15]}  Ne8 {[%clk 0:00:30]} 36. Bg5 {[%clk 0:00:14]}  Rf7 {[%clk 0:00:30]} 37. Bxh4 {[%clk 0:00:12]}  Rxf5 {[%clk 0:00:30]} 38. Nxg7 {[%clk 0:00:13]}  Rf3 {[%clk 0:00:30]} 39. R6g5 {[%clk 0:00:14]}  Rxh3 {[%clk 0:00:29]} 40. Rg6 {[%clk 0:00:15]}  Rxh4 {[%clk 0:00:29]} 41. Ne6 {[%clk 0:00:14]}  Rh2 {[%clk 0:00:27]} 42. Rf1 {[%clk 0:00:12]}  Nc7 {[%clk 0:00:26]} 43. Nc5+ {[%clk 0:00:12]}  Kb6 {[%clk 0:00:26]} 44. Nd3 {[%clk 0:00:12]}  Rd8 {[%clk 0:00:25]} 45. Ne5 {[%clk 0:00:12]}  d4 {[%clk 0:00:17]} 46. Nxc6 {[%clk 0:00:12]}  Rf8 {[%clk 0:00:14]} 47. Nxd4+ {[%clk 0:00:12]}  Kb7 {[%clk 0:00:15]} 48. Rg7 {[%clk 0:00:10]}  Kc8 {[%clk 0:00:14]} 49. Nc6 {[%clk 0:00:09]}  Nd5 {[%clk 0:00:14]} 50. Ne7+ {[%clk 0:00:09]}  Nxe7 {[%clk 0:00:13]} 51. Rxe7 {[%clk 0:00:10]}  Rfxf2+ {[%clk 0:00:14]} 52. Rxf2 {[%clk 0:00:09]}  Rxf2+ {[%clk 0:00:15]} 53. Kc1 {[%clk 0:00:10]}  Rf1+ {[%clk 0:00:16]} 54. Kd2 {[%clk 0:00:10]}  Rf2+ {[%clk 0:00:16]} 55. Re2 {[%clk 0:00:10]}  Rf3 {[%clk 0:00:17]} 56. b4 {[%clk 0:00:10]}  Kc7 {[%clk 0:00:17]} 57. Kc2 {[%clk 0:00:11]}  Kb6 {[%clk 0:00:17]} 58. Re6+ {[%clk 0:00:11]}  Kb7 {[%clk 0:00:18]} 59. Kb3 {[%clk 0:00:11]}  Rg3 {[%clk 0:00:18]} 60. Re5 {[%clk 0:00:12]}  Rh3 {[%clk 0:00:16]} 61. Rc5 {[%clk 0:00:12]}  Rg3 {[%clk 0:00:16]} 62. a4 {[%clk 0:00:13]}  Kb6 {[%clk 0:00:15]} 63. a5+ {[%clk 0:00:12]}  Kb7 {[%clk 0:00:15]} 64. Rd5 {[%clk 0:00:13]}  Rh3 {[%clk 0:00:16]} 65. Re5 {[%clk 0:00:13]}  Rg3 {[%clk 0:00:16]} 66. Re2 {[%clk 0:00:13]}  Rh3 {[%clk 0:00:16]} 67. Rc2 {[%clk 0:00:14]}  Rg3 {[%clk 0:00:17]} 68. Kb2 {[%clk 0:00:14]}  Rg4 {[%clk 0:00:17]} 69. c4 {[%clk 0:00:15]}  bxc4 {[%clk 0:00:17]} 70. Kc3 {[%clk 0:00:15]}  Kc6 {[%clk 0:00:17]} 71. Rd2 {[%clk 0:00:16]}  Rh4 {[%clk 0:00:10]} 72. Rd4 {[%clk 0:00:16]}  Rh5 {[%clk 0:00:10]} 73. Kxc4 {[%clk 0:00:16]}  Kb7 {[%clk 0:00:10]} 74. Re4 {[%clk 0:00:16]}  Rg5 {[%clk 0:00:10]} 75. Re7+ {[%clk 0:00:16]}  Kb8 {[%clk 0:00:10]} 76. Re6 {[%clk 0:00:17]}  Kb7 {[%clk 0:00:10]} 77. Rb6+ {[%clk 0:00:17]}  Ka7 {[%clk 0:00:11]} 78. Rc6 {[%clk 0:00:17]}  Kb7 {[%clk 0:00:11]} 79. Rc5 {[%clk 0:00:17]}  Rg4+ {[%clk 0:00:10]} 80. Kb3 {[%clk 0:00:17]}  Rg3+ {[%clk 0:00:11]} 81. Ka4 {[%clk 0:00:17]}  Rg4 {[%clk 0:00:11]} 82. Rd5 {[%clk 0:00:17]}  Rh4 {[%clk 0:00:12]} 83. Re5 {[%clk 0:00:18]}  Rg4 {[%clk 0:00:12]} 84. Re7+ {[%clk 0:00:18]}  Kb8 {[%clk 0:00:12]} 85. Rf7 {[%clk 0:00:19]}  Rh4 {[%clk 0:00:12]} 86. Ka3 {[%clk 0:00:19]}  Rg4 {[%clk 0:00:12]} 87. Kb3 {[%clk 0:00:20]}  Rh4 {[%clk 0:00:13]} 88. Kc3 {[%clk 0:00:20]}  Rg4 {[%clk 0:00:13]} 89. Rd7 {[%clk 0:00:21]}  Rh4 {[%clk 0:00:14]} 90. Rd4 {[%clk 0:00:21]}  Rh3+ {[%clk 0:00:14]} 91. Kc4 {[%clk 0:00:21]}  Rh5 {[%clk 0:00:15]} 92. Rd5 {[%clk 0:00:21]}  Rh4+ {[%clk 0:00:15]} 93. Kc5 {[%clk 0:00:22]}  Rh1 {[%clk 0:00:15]} 94. Kb6 {[%clk 0:00:21]}  Rh6+ {[%clk 0:00:15]} 95. Kc5 {[%clk 0:00:21]}  Kb7 {[%clk 0:00:15]} 96. Rd7+ {[%clk 0:00:20]}  Kb8 {[%clk 0:00:15]} 97. Rd6 {[%clk 0:00:21]}  Rh5+ {[%clk 0:00:15]} 98. Kb6 {[%clk 0:00:20]}  Rb5+ {[%clk 0:00:16]} 99. Kxa6 {[%clk 0:00:21]}  Rxb4 {[%clk 0:00:16]} 100. Rd8+ {[%clk 0:00:21]}  Kc7 {[%clk 0:00:17]} 101. Rf8 {[%clk 0:00:21]}  Rb1 {[%clk 0:00:16]} 102. Rf7+ {[%clk 0:00:21]}  Kb8 {[%clk 0:00:16]} 103. Rf6 {[%clk 0:00:20]}  Rb2 {[%clk 0:00:15]} 104. Re6 {[%clk 0:00:14]}  Rb1 {[%clk 0:00:15]} 105. Re8+ {[%clk 0:00:14]}  Kc7 {[%clk 0:00:15]} 106. Ka7 {[%clk 0:00:14]}  Rb7+ {[%clk 0:00:14]} 107. Ka6 {[%clk 0:00:14]}  Rb1 {[%clk 0:00:14]} 108. Rg8 {[%clk 0:00:15]}  Rb2 {[%clk 0:00:14]} 109. Rg7+ {[%clk 0:00:15]}  Kb8 {[%clk 0:00:14]} 110. Rg8+ {[%clk 0:00:15]}  Kc7 {[%clk 0:00:14]} 111. Rf8 {[%clk 0:00:15]}  Rb1 {[%clk 0:00:15]} 112. Rf6 {[%clk 0:00:15]}  Kb8 {[%clk 0:00:14]} 113. Re6 {[%clk 0:00:15]}  Rb2 {[%clk 0:00:14]} 114. Re8+ {[%clk 0:00:15]}  Kc7 {[%clk 0:00:14]} 115. Rh8 {[%clk 0:00:16]}  Rb1 {[%clk 0:00:14]} 116. Rh7+ {[%clk 0:00:16]}  Kb8 {[%clk 0:00:14]} 117. Rh6 {[%clk 0:00:17]}  Rb2 {[%clk 0:00:13]} 118. Rh5 {[%clk 0:00:17]}  Rb1 {[%clk 0:00:13]} 119. Rh8+ {[%clk 0:00:17]}  Kc7 {[%clk 0:00:13]} 120. Ra8 {[%clk 0:00:18]}  Rb2 {[%clk 0:00:12]} 121. Ra7+ {[%clk 0:00:18]}  Kb8 {[%clk 0:00:12]} 122. Re7 {[%clk 0:00:18]}  Rb1 {[%clk 0:00:12]} 123. Re6 {[%clk 0:00:18]}  Rb2 {[%clk 0:00:12]} 124. Re8+ {[%clk 0:00:18]}  Kc7 {[%clk 0:00:12]} 125. Re5 {[%clk 0:00:18]}  Kb8 {[%clk 0:00:11]} 126. Rh5 {[%clk 0:00:18]}  Rb1 {[%clk 0:00:11]} 127. Rh8+ {[%clk 0:00:19]}  Kc7 {[%clk 0:00:11]} 1/2-1/2


[Site "https://www.chess.com"]

[Event "Titled Tuesday Blitz April 25 Early 2023"]
[White "Turzo, Attila"]
[Black "Bashirli, Saadat"]
[WhiteFideId "704954"]
[BlackFideId "13429990"]
[WhiteElo "2463"]
[BlackElo "1408"]
[Result "1-0"]
[Round "03"]
[TimeControl "180+2"]
[Date "2023.04.25"]
[WhiteClock "0:01:40"]
[BlackClock "0:00:17"]

1. e4 {[%clk 0:03:00]}  c5 {[%clk 0:02:59]} 2. Nc3 {[%clk 0:03:00]}  g6 {[%clk 0:02:59]} 3. d4 {[%clk 0:02:58]}  cxd4 {[%clk 0:02:55]} 4. Qxd4 {[%clk 0:02:59]}  Nf6 {[%clk 0:02:56]} 5. Qe3 {[%clk 0:02:48]}  d6 {[%clk 0:02:51]} 6. b3 {[%clk 0:02:44]}  Bg7 {[%clk 0:02:49]} 7. Bb2 {[%clk 0:02:45]}  O-O {[%clk 0:02:48]} 8. O-O-O {[%clk 0:02:43]}  Ng4 {[%clk 0:02:45]} 9. Qe1 {[%clk 0:02:37]}  Qb6 {[%clk 0:02:37]} 10. Nh3 {[%clk 0:02:35]}  Be6 {[%clk 0:02:34]} 11. Kb1 {[%clk 0:02:34]}  Nd7 {[%clk 0:02:28]} 12. f3 {[%clk 0:02:26]}  Ne3 {[%clk 0:02:22]} 13. Na4 {[%clk 0:02:26]}  Qc6 {[%clk 0:01:32]} 14. Qxe3 {[%clk 0:02:25]}  Rfc8 {[%clk 0:01:28]} 15. Bd3 {[%clk 0:02:17]}  Bxb2 {[%clk 0:01:24]} 16. Nxb2 {[%clk 0:02:16]}  Ne5 {[%clk 0:01:22]} 17. Nf4 {[%clk 0:02:14]}  Bd7 {[%clk 0:01:18]} 18. Nd5 {[%clk 0:02:13]}  Re8 {[%clk 0:01:08]} 19. f4 {[%clk 0:02:07]}  Ng4 {[%clk 0:01:07]} 20. Qe2 {[%clk 0:02:07]}  Rac8 {[%clk 0:01:03]} 21. h3 {[%clk 0:02:06]}  Nh6 {[%clk 0:01:02]} 22. g4 {[%clk 0:02:06]}  Kg7 {[%clk 0:00:59]} 23. g5 {[%clk 0:02:04]}  Ng8 {[%clk 0:00:59]} 24. h4 {[%clk 0:02:04]}  e6 {[%clk 0:00:59]} 25. Ne3 {[%clk 0:02:00]}  d5 {[%clk 0:00:59]} 26. e5 {[%clk 0:01:57]}  Ne7 {[%clk 0:00:53]} 27. h5 {[%clk 0:01:57]}  Rh8 {[%clk 0:00:52]} 28. Ng4 {[%clk 0:01:52]}  Qc5 {[%clk 0:00:46]} 29. Nf6 {[%clk 0:01:51]}  Bc6 {[%clk 0:00:42]} 30. Rh2 {[%clk 0:01:47]}  gxh5 {[%clk 0:00:33]} 31. Qxh5 {[%clk 0:01:45]}  h6 {[%clk 0:00:23]} 32. gxh6+ {[%clk 0:01:41]}  Kf8 {[%clk 0:00:24]} 33. h7 {[%clk 0:01:41]}  Qe3 {[%clk 0:00:17]} 34. Qh6# {[%clk 0:01:40]} 1-0


[Site "https://www.chess.com"]

[Event "Titled Tuesday Blitz April 25 Early 2023"]
[White "Jovic, Stanoje"]
[Black "Sarkar, Justin"]
[WhiteFideId "905020"]
[BlackFideId "2010011"]
[WhiteElo "2236"]
[BlackElo "2189"]
[Result "1-0"]
[Round "03"]
[TimeControl "180+2"]
[Date "2023.04.25"]
[WhiteClock "0:01:45"]
[BlackClock "0:00:02"]

1. c4 {[%clk 0:03:00]}  Nf6 {[%clk 0:02:50]} 2. g3 {[%clk 0:03:01]}  c6 {[%clk 0:02:38]} 3. Bg2 {[%clk 0:03:00]}  d5 {[%clk 0:02:37]} 4. cxd5 {[%clk 0:03:01]}  cxd5 {[%clk 0:02:36]} 5. Nf3 {[%clk 0:03:01]}  Nc6 {[%clk 0:02:18]} 6. d4 {[%clk 0:02:59]}  Bg4 {[%clk 0:02:13]} 7. Ne5 {[%clk 0:02:57]}  e6 {[%clk 0:01:47]} 8. O-O {[%clk 0:02:49]}  Bf5 {[%clk 0:01:35]} 9. Nc3 {[%clk 0:02:47]}  Nxe5 {[%clk 0:01:31]} 10. dxe5 {[%clk 0:02:47]}  Nd7 {[%clk 0:01:32]} 11. f4 {[%clk 0:02:46]}  Bc5+ {[%clk 0:01:26]} 12. Kh1 {[%clk 0:02:46]}  O-O {[%clk 0:01:21]} 13. e4 {[%clk 0:02:45]}  dxe4 {[%clk 0:01:16]} 14. Nxe4 {[%clk 0:02:45]}  Qe7 {[%clk 0:00:42]} 15. Nd6 {[%clk 0:02:37]}  Bxd6 {[%clk 0:00:19]} 16. exd6 {[%clk 0:02:37]}  Qf6 {[%clk 0:00:18]} 17. Bxb7 {[%clk 0:02:36]}  Rab8 {[%clk 0:00:18]} 18. Bg2 {[%clk 0:02:35]}  Rfd8 {[%clk 0:00:16]} 19. g4 {[%clk 0:02:29]}  Bg6 {[%clk 0:00:12]} 20. g5 {[%clk 0:02:28]}  Qf5 {[%clk 0:00:09]} 21. Rf2 {[%clk 0:02:17]}  Nc5 {[%clk 0:00:07]} 22. Be3 {[%clk 0:02:10]}  Nd3 {[%clk 0:00:04]} 23. Rd2 {[%clk 0:01:53]}  Rxd6 {[%clk 0:00:04]} 24. Bxa7 {[%clk 0:01:47]}  Rbd8 {[%clk 0:00:02]} 25. Be3 {[%clk 0:01:45]} 1-0


[Site "https://www.chess.com"]

[Event "Titled Tuesday Blitz April 25 Early 2023"]
[White "Omariev, Maksim"]
[Black "Orzech, Dominik"]
[WhiteFideId "4193423"]
[BlackFideId "1115065"]
[WhiteElo "2412"]
[BlackElo "2260"]
[Result "1-0"]
[Round "03"]
[TimeControl "180+2"]
[Date "2023.04.25"]
[WhiteClock "0:00:21"]
[BlackClock "0:00:43"]

1. e4 {[%clk 0:03:00]}  e6 {[%clk 0:02:40]} 2. d4 {[%clk 0:03:00]}  d5 {[%clk 0:02:41]} 3. Nc3 {[%clk 0:03:00]}  Bb4 {[%clk 0:02:40]} 4. exd5 {[%clk 0:03:00]}  exd5 {[%clk 0:02:40]} 5. Bd3 {[%clk 0:03:01]}  Ne7 {[%clk 0:02:40]} 6. a3 {[%clk 0:03:01]}  Bxc3+ {[%clk 0:02:39]} 7. bxc3 {[%clk 0:03:02]}  Bf5 {[%clk 0:02:39]} 8. Qf3 {[%clk 0:03:01]}  Qd7 {[%clk 0:02:34]} 9. Ne2 {[%clk 0:03:00]}  O-O {[%clk 0:02:32]} 10. O-O {[%clk 0:02:59]}  Nbc6 {[%clk 0:02:25]} 11. Rb1 {[%clk 0:02:53]}  Na5 {[%clk 0:02:21]} 12. Ng3 {[%clk 0:02:47]}  Bg6 {[%clk 0:02:16]} 13. h4 {[%clk 0:02:44]}  b6 {[%clk 0:02:09]} 14. h5 {[%clk 0:02:44]}  Bxd3 {[%clk 0:02:07]} 15. cxd3 {[%clk 0:02:45]}  h6 {[%clk 0:02:05]} 16. Bf4 {[%clk 0:02:32]}  Rfe8 {[%clk 0:02:02]} 17. Rfe1 {[%clk 0:02:24]}  Rac8 {[%clk 0:01:58]} 18. Be5 {[%clk 0:02:11]}  Nb7 {[%clk 0:01:52]} 19. Qf4 {[%clk 0:02:05]}  Nd6 {[%clk 0:01:49]} 20. Re3 {[%clk 0:01:58]}  f6 {[%clk 0:01:44]} 21. Bxf6 {[%clk 0:01:26]}  gxf6 {[%clk 0:01:42]} 22. Qxh6 {[%clk 0:01:26]}  Ndf5 {[%clk 0:01:35]} 23. Nxf5 {[%clk 0:01:25]}  Qxf5 {[%clk 0:01:29]} 24. Rbe1 {[%clk 0:00:52]}  Kf7 {[%clk 0:01:26]} 25. Rf3 {[%clk 0:00:46]}  Rh8 {[%clk 0:01:03]} 26. Qxh8 {[%clk 0:00:41]}  Rxh8 {[%clk 0:00:56]} 27. Rxe7+ {[%clk 0:00:41]}  Kxe7 {[%clk 0:00:56]} 28. Rxf5 {[%clk 0:00:42]}  Ke6 {[%clk 0:00:56]} 29. g4 {[%clk 0:00:41]}  c5 {[%clk 0:00:57]} 30. dxc5 {[%clk 0:00:39]}  bxc5 {[%clk 0:00:58]} 31. c4 {[%clk 0:00:33]}  dxc4 {[%clk 0:00:53]} 32. dxc4 {[%clk 0:00:34]}  Rc8 {[%clk 0:00:52]} 33. Kg2 {[%clk 0:00:32]}  Rc6 {[%clk 0:00:52]} 34. f3 {[%clk 0:00:30]}  Ra6 {[%clk 0:00:49]} 35. Rxc5 {[%clk 0:00:30]}  Rxa3 {[%clk 0:00:48]} 36. h6 {[%clk 0:00:27]}  Kf7 {[%clk 0:00:48]} 37. Rc7+ {[%clk 0:00:21]}  Kg8 {[%clk 0:00:46]} 38. Kg3 {[%clk 0:00:19]}  a5 {[%clk 0:00:46]} 39. Kf4 {[%clk 0:00:18]}  a4 {[%clk 0:00:45]} 40. Kf5 {[%clk 0:00:18]}  Rxf3+ {[%clk 0:00:45]} 41. Kg6 {[%clk 0:00:18]}  Kf8 {[%clk 0:00:44]} 42. h7 {[%clk 0:00:18]}  Rh3 {[%clk 0:00:44]} 43. Rc8+ {[%clk 0:00:17]}  Ke7 {[%clk 0:00:44]} 44. h8=Q {[%clk 0:00:18]}  Rxh8 {[%clk 0:00:43]} 45. Rxh8 {[%clk 0:00:19]}  Kd6 {[%clk 0:00:42]} 46. Kxf6 {[%clk 0:00:19]}  Kc5 {[%clk 0:00:43]} 47. Rc8+ {[%clk 0:00:19]}  Kb4 {[%clk 0:00:43]} 48. g5 {[%clk 0:00:20]}  a3 {[%clk 0:00:43]} 49. g6 {[%clk 0:00:21]}  a2 {[%clk 0:00:44]} 50. Ra8 {[%clk 0:00:21]}  Kxc4 {[%clk 0:00:43]} 51. Rxa2 {[%clk 0:00:21]} 1-0


[Site "https://www.chess.com"]

[Event "Titled Tuesday Blitz April 25 Early 2023"]
[White "Andrews, Todd"]
[Black "Nissinen, Niilo Man"]
[WhiteFideId "2012456"]
[BlackFideId "30950767"]
[WhiteElo "2403"]
[BlackElo "1952"]
[Result "1-0"]
[Round "03"]
[TimeControl "180+2"]
[Date "2023.04.25"]
[WhiteClock "0:00:11"]
[BlackClock "0:00:01"]

1. e4 {[%clk 0:03:00]}  c5 {[%clk 0:02:59]} 2. Nf3 {[%clk 0:02:58]}  Nc6 {[%clk 0:02:59]} 3. d3 {[%clk 0:02:58]}  g6 {[%clk 0:02:58]} 4. g3 {[%clk 0:02:58]}  Bg7 {[%clk 0:02:57]} 5. Bg2 {[%clk 0:02:59]}  e6 {[%clk 0:02:57]} 6. O-O {[%clk 0:03:00]}  Nge7 {[%clk 0:02:57]} 7. Re1 {[%clk 0:03:01]}  d6 {[%clk 0:02:57]} 8. c3 {[%clk 0:03:01]}  O-O {[%clk 0:02:57]} 9. d4 {[%clk 0:03:02]}  cxd4 {[%clk 0:02:52]} 10. cxd4 {[%clk 0:03:03]}  b6 {[%clk 0:02:49]} 11. Nc3 {[%clk 0:03:03]}  d5 {[%clk 0:02:39]} 12. e5 {[%clk 0:03:02]}  f6 {[%clk 0:02:26]} 13. exf6 {[%clk 0:02:52]}  Bxf6 {[%clk 0:02:27]} 14. Bh6 {[%clk 0:02:49]}  Re8 {[%clk 0:02:22]} 15. Ne5 {[%clk 0:02:34]}  Nxe5 {[%clk 0:01:13]} 16. dxe5 {[%clk 0:02:33]}  Bh8 {[%clk 0:01:14]} 17. Nb5 {[%clk 0:02:19]}  Nf5 {[%clk 0:01:11]} 18. Bf4 {[%clk 0:02:14]}  Bd7 {[%clk 0:01:08]} 19. Nd6 {[%clk 0:01:46]}  Nxd6 {[%clk 0:01:08]} 20. exd6 {[%clk 0:01:47]}  Bxb2 {[%clk 0:00:37]} 21. Rb1 {[%clk 0:01:36]}  Bf6 {[%clk 0:00:37]} 22. Rc1 {[%clk 0:01:32]}  Rc8 {[%clk 0:00:28]} 23. Rc7 {[%clk 0:01:31]}  g5 {[%clk 0:00:25]} 24. Qg4 {[%clk 0:01:17]}  Kh8 {[%clk 0:00:21]} 25. Be5 {[%clk 0:01:08]}  Bxe5 {[%clk 0:00:18]} 26. Rxe5 {[%clk 0:01:08]}  Rxc7 {[%clk 0:00:16]} 27. dxc7 {[%clk 0:01:08]}  Qxc7 {[%clk 0:00:16]} 28. Qxg5 {[%clk 0:01:06]}  Rf8 {[%clk 0:00:09]} 29. Qh6 {[%clk 0:00:37]}  Qd8 {[%clk 0:00:08]} 30. h4 {[%clk 0:00:30]}  Qf6 {[%clk 0:00:08]} 31. Qe3 {[%clk 0:00:30]}  Rc8 {[%clk 0:00:06]} 32. Kh2 {[%clk 0:00:29]}  Rc2 {[%clk 0:00:05]} 33. Rg5 {[%clk 0:00:23]}  d4 {[%clk 0:00:03]} 34. Qe4 {[%clk 0:00:19]}  Rc8 {[%clk 0:00:01]} 35. Qb7 {[%clk 0:00:18]}  Rd8 {[%clk 0:00:01]} 36. Qc7 {[%clk 0:00:15]}  d3 {[%clk 0:00:01]} 37. Qd6 {[%clk 0:00:11]}  e5 {[%clk 0:00:01]} 38. Qxf6# {[%clk 0:00:11]} 1-0


[Site "https://www.chess.com"]

[Event "Titled Tuesday Blitz April 25 Early 2023"]
[White "Kopczynski, Michal"]
[Black "Quirke, Jeffrey"]
[WhiteFideId "1124200"]
[BlackFideId "2013029"]
[WhiteElo "2212"]
[BlackElo "2223"]
[Result "1-0"]
[Round "03"]
[TimeControl "180+2"]
[Date "2023.04.25"]
[WhiteClock "0:00:21"]
[BlackClock "0:00:03"]

1. e4 {[%clk 0:03:00]}  Nf6 {[%clk 0:02:55]} 2. e5 {[%clk 0:03:00]}  Nd5 {[%clk 0:02:54]} 3. d4 {[%clk 0:03:01]}  d6 {[%clk 0:02:54]} 4. exd6 {[%clk 0:03:02]}  exd6 {[%clk 0:02:53]} 5. Nf3 {[%clk 0:03:00]}  Bg4 {[%clk 0:02:43]} 6. Bd3 {[%clk 0:03:00]}  Be7 {[%clk 0:02:39]} 7. O-O {[%clk 0:03:00]}  Nf6 {[%clk 0:02:32]} 8. Bg5 {[%clk 0:02:55]}  Nbd7 {[%clk 0:02:27]} 9. c3 {[%clk 0:02:51]}  O-O {[%clk 0:02:26]} 10. Nbd2 {[%clk 0:02:51]}  d5 {[%clk 0:02:25]} 11. Qc2 {[%clk 0:02:49]}  h6 {[%clk 0:02:25]} 12. Bh4 {[%clk 0:02:49]}  c6 {[%clk 0:02:18]} 13. Rae1 {[%clk 0:02:47]}  Bd6 {[%clk 0:02:17]} 14. h3 {[%clk 0:02:43]}  Bxf3 {[%clk 0:02:14]} 15. Nxf3 {[%clk 0:02:42]}  Re8 {[%clk 0:02:14]} 16. Rxe8+ {[%clk 0:02:31]}  Qxe8 {[%clk 0:02:14]} 17. Re1 {[%clk 0:02:30]}  Qf8 {[%clk 0:02:15]} 18. Ne5 {[%clk 0:02:27]}  Re8 {[%clk 0:02:10]} 19. f4 {[%clk 0:02:13]}  Nb6 {[%clk 0:01:43]} 20. Qd1 {[%clk 0:01:57]}  Ne4 {[%clk 0:00:59]} 21. a4 {[%clk 0:01:20]}  f6 {[%clk 0:00:52]} 22. a5 {[%clk 0:01:13]}  fxe5 {[%clk 0:00:36]} 23. fxe5 {[%clk 0:01:13]}  Nd7 {[%clk 0:00:23]} 24. Rf1 {[%clk 0:01:11]}  Nef6 {[%clk 0:00:17]} 25. exf6 {[%clk 0:00:48]}  Nxf6 {[%clk 0:00:16]} 26. Bxf6 {[%clk 0:00:48]}  gxf6 {[%clk 0:00:16]} 27. Qh5 {[%clk 0:00:44]}  Re3 {[%clk 0:00:06]} 28. Qg6+ {[%clk 0:00:29]}  Qg7 {[%clk 0:00:06]} 29. Rxf6 {[%clk 0:00:28]}  Qxg6 {[%clk 0:00:02]} 30. Rxg6+ {[%clk 0:00:26]}  Kf7 {[%clk 0:00:03]} 31. Rxd6 {[%clk 0:00:19]}  Rxd3 {[%clk 0:00:03]} 32. Rxh6 {[%clk 0:00:19]}  Rd2 {[%clk 0:00:03]} 33. Rh7+ {[%clk 0:00:20]}  Ke6 {[%clk 0:00:03]} 34. Rxb7 {[%clk 0:00:21]} 1-0


[Site "https://www.chess.com"]

[Event "Titled Tuesday Blitz April 25 Early 2023"]
[White "Petrova, Irina"]
[Black "Clawitter, Craig"]
[WhiteFideId "14124122"]
[BlackFideId "2023105"]
[WhiteElo "2084"]
[BlackElo "2222"]
[Result "1-0"]
[Round "03"]
[TimeControl "180+2"]
[Date "2023.04.25"]
[WhiteClock "0:02:34"]
[BlackClock "0:01:21"]

1. e4 {[%clk 0:03:00]}  e6 {[%clk 0:02:15]} 2. d4 {[%clk 0:03:00]}  d5 {[%clk 0:02:16]} 3. Nc3 {[%clk 0:03:00]}  Bb4 {[%clk 0:02:15]} 4. Ne2 {[%clk 0:03:00]}  dxe4 {[%clk 0:02:13]} 5. a3 {[%clk 0:02:59]}  Be7 {[%clk 0:02:13]} 6. g4 {[%clk 0:02:59]}  Nf6 {[%clk 0:02:03]} 7. g5 {[%clk 0:02:59]}  Nd5 {[%clk 0:02:03]} 8. Nxe4 {[%clk 0:02:59]}  Nd7 {[%clk 0:02:01]} 9. c4 {[%clk 0:02:53]}  N5b6 {[%clk 0:02:00]} 10. N2c3 {[%clk 0:02:53]}  c5 {[%clk 0:01:58]} 11. d5 {[%clk 0:02:47]}  Ne5 {[%clk 0:01:30]} 12. d6 {[%clk 0:02:36]}  Bf8 {[%clk 0:01:21]} 13. Nb5 {[%clk 0:02:34]} 1-0


[Site "https://www.chess.com"]